[Event "*** Titled Tuesday Blitz"]
[Site "Chess.com"]
[Date "2020.11.10"]
[Round "1"]
[White "ChessFrois"]
[Black "elisak43"]
[Result "0-1"]
[WhiteElo "2084"]
[BlackElo "2512"]
[TimeControl "180+1"]
[EndTime "10:04:24 PST"]
[Termination "elisak43 won by resignation"]

1. e4 {[%clk 0:03:00.9]} 1... Nf6 {[%clk 0:02:58.6]} 2. Nf3 {[%clk 0:03:01.4]}
2... Nxe4 {[%clk 0:02:58.7]} 3. d4 {[%clk 0:02:59.7]} 3... d5 {[%clk 0:02:58.5]}
4. Bd3 {[%clk 0:02:59.8]} 4... Bg4 {[%clk 0:02:55.5]} 5. h3 {[%clk 0:02:58.7]}
5... Bh5 {[%clk 0:02:55.8]} 6. g4 {[%clk 0:02:54.5]} 6... Bg6 {[%clk 0:02:56]}
7. Ne5 {[%clk 0:02:54.9]} 7... Nc6 {[%clk 0:02:48.6]} 8. Nxc6 {[%clk 0:02:47]}
8... bxc6 {[%clk 0:02:48.1]} 9. Bf4 {[%clk 0:02:38.6]} 9... e6 {[%clk
0:02:44.8]} 10. c3 {[%clk 0:02:38.1]} 10... Bd6 {[%clk 0:02:44.6]} 11. Be3
{[%clk 0:02:36.1]} 11... Qh4 {[%clk 0:02:35.8]} 12. Qf3 {[%clk 0:02:23]} 12...
h5 {[%clk 0:02:23.1]} 13. Rg1 {[%clk 0:02:06.6]} 13... hxg4 {[%clk 0:02:21.8]}
14. hxg4 {[%clk 0:02:07.5]} 14... Ng5 {[%clk 0:02:17.1]} 15. Bxg5 {[%clk
0:01:56.4]} 15... Qxg5 {[%clk 0:02:18]} 16. Nd2 {[%clk 0:01:52.8]} 16... Bxd3
{[%clk 0:02:11.1]} 17. Qxd3 {[%clk 0:01:53.7]} 17... Kd7 {[%clk 0:02:11.1]} 18.
O-O-O {[%clk 0:01:46.7]} 18... Rh2 {[%clk 0:02:08.2]} 19. Kb1 {[%clk 0:01:34.5]}
19... Rxf2 {[%clk 0:02:06.3]} 20. Nb3 {[%clk 0:01:33.5]} 20... Qg6 {[%clk
0:02:02.5]} 21. Qxg6 {[%clk 0:01:28.1]} 21... fxg6 {[%clk 0:02:03.4]} 22. Rh1
{[%clk 0:01:28.2]} 22... Raf8 {[%clk 0:02:02.4]} 23. Rh7 {[%clk 0:01:28]} 23...
R8f7 {[%clk 0:02:02.8]} 24. Kc1 {[%clk 0:01:26.2]} 24... Rg2 {[%clk 0:01:57.4]}
25. Re1 {[%clk 0:01:18.7]} 25... Rxg4 {[%clk 0:01:55.5]} 26. Rh8 {[%clk
0:01:09.2]} 26... Rgf4 {[%clk 0:01:52.3]} 27. Ra8 {[%clk 0:01:08.7]} 27... g5
{[%clk 0:01:52.1]} 28. Rxa7 {[%clk 0:01:08.4]} 28... g4 {[%clk 0:01:52.6]} 29.
Ra8 {[%clk 0:01:08.6]} 29... g3 {[%clk 0:01:52.6]} 30. Rg1 {[%clk 0:01:04.7]}
30... Rf1+ {[%clk 0:01:52.4]} 31. Rxf1 {[%clk 0:01:04.8]} 31... Rxf1+ {[%clk
0:01:53.3]} 0-1

[Event "*** Titled Tuesday Blitz"]
[Site "Chess.com"]
[Date "2020.11.10"]
[Round "1"]
[White "Zhigalko_Sergei"]
[Black "KacperPolOK"]
[Result "1-0"]
[WhiteElo "2927"]
[BlackElo "2458"]
[TimeControl "180+1"]
[EndTime "10:04:25 PST"]
[Termination "Zhigalko_Sergei won by resignation"]

1. e4 {[%clk 0:03:00.9]} 1... e6 {[%clk 0:02:58.7]} 2. d4 {[%clk 0:03:00.9]}
2... d5 {[%clk 0:02:58.2]} 3. e5 {[%clk 0:03:00.5]} 3... c5 {[%clk 0:02:57.4]}
4. c3 {[%clk 0:03:01]} 4... Nc6 {[%clk 0:02:57.8]} 5. Nf3 {[%clk 0:03:01.1]}
5... Bd7 {[%clk 0:02:58.2]} 6. Be2 {[%clk 0:03:00.8]} 6... f6 {[%clk 0:02:57.3]}
7. O-O {[%clk 0:03:00.6]} 7... fxe5 {[%clk 0:02:57.2]} 8. dxe5 {[%clk
0:03:01.5]} 8... Qc7 {[%clk 0:02:57.4]} 9. c4 {[%clk 0:03:01.5]} 9... d4 {[%clk
0:02:57.6]} 10. Re1 {[%clk 0:03:00.4]} 10... O-O-O {[%clk 0:02:57.1]} 11. Bd3
{[%clk 0:03:00.2]} 11... g6 {[%clk 0:02:34.5]} 12. Na3 {[%clk 0:02:36.5]} 12...
a6 {[%clk 0:02:13.7]} 13. Nc2 {[%clk 0:02:35.5]} 13... Nge7 {[%clk 0:02:11]} 14.
Ng5 {[%clk 0:02:28.8]} 14... Nxe5 {[%clk 0:01:44.9]} 15. Bf4 {[%clk 0:02:27.1]}
15... N7c6 {[%clk 0:01:45]} 16. Nf7 {[%clk 0:02:16.7]} 16... Bd6 {[%clk
0:01:44.1]} 17. Nxd6+ {[%clk 0:02:09.4]} 17... Qxd6 {[%clk 0:01:44]} 18. Qe2
{[%clk 0:02:09.7]} 18... Nf3+ {[%clk 0:01:33.3]} 19. Qxf3 {[%clk 0:02:09.1]}
19... e5 {[%clk 0:01:33.3]} 20. Bg3 {[%clk 0:02:06.3]} 20... Rhf8 {[%clk
0:01:30]} 21. Qe2 {[%clk 0:01:31.6]} 21... Qf6 {[%clk 0:01:20.5]} 22. Be4 {[%clk
0:01:28.2]} 22... h5 {[%clk 0:01:18]} 23. Bxc6 {[%clk 0:01:25.3]} 23... Bxc6
{[%clk 0:01:17.7]} 24. Qxe5 {[%clk 0:01:24.5]} 1-0

[Event "*** Titled Tuesday Blitz"]
[Site "Chess.com"]
[Date "2020.11.10"]
[Round "1"]
[White "lolo9292"]
[Black "IngOscarArdila"]
[Result "1-0"]
[WhiteElo "2522"]
[BlackElo "2125"]
[TimeControl "180+1"]
[EndTime "10:04:33 PST"]
[Termination "lolo9292 won by resignation"]

1. d4 {[%clk 0:03:00.9]} 1... Nf6 {[%clk 0:02:55.3]} 2. c4 {[%clk 0:03:00.8]}
2... g6 {[%clk 0:02:53]} 3. f3 {[%clk 0:02:59.6]} 3... d6 {[%clk 0:02:51.5]} 4.
e4 {[%clk 0:02:59.8]} 4... Bg7 {[%clk 0:02:51.5]} 5. Nc3 {[%clk 0:03:00]} 5...
Nbd7 {[%clk 0:02:50.2]} 6. Nge2 {[%clk 0:02:57.5]} 6... O-O {[%clk 0:02:49.5]}
7. Be3 {[%clk 0:02:57.8]} 7... e5 {[%clk 0:02:49]} 8. d5 {[%clk 0:02:57.5]} 8...
a5 {[%clk 0:02:46.7]} 9. g4 {[%clk 0:02:56.9]} 9... Nc5 {[%clk 0:02:46.2]} 10.
h4 {[%clk 0:02:56.1]} 10... Nfd7 {[%clk 0:02:45.1]} 11. h5 {[%clk 0:02:54.9]}
11... f5 {[%clk 0:02:37.8]} 12. hxg6 {[%clk 0:02:54.4]} 12... hxg6 {[%clk
0:02:37.8]} 13. gxf5 {[%clk 0:02:54]} 13... gxf5 {[%clk 0:02:38.1]} 14. Qc2
{[%clk 0:02:53.5]} 14... f4 {[%clk 0:02:23.4]} 15. Bf2 {[%clk 0:02:52.6]} 15...
c6 {[%clk 0:02:20.2]} 16. O-O-O {[%clk 0:02:51.9]} 16... cxd5 {[%clk 0:02:17.7]}
17. Nxd5 {[%clk 0:02:51.3]} 17... Nb6 {[%clk 0:02:09]} 18. Nec3 {[%clk
0:02:46.1]} 18... Nxd5 {[%clk 0:02:04.8]} 19. Rxd5 {[%clk 0:02:45.2]} 19... Be6
{[%clk 0:02:02]} 20. Bxc5 {[%clk 0:02:44.6]} 20... Bxd5 {[%clk 0:02:01.8]} 21.
exd5 {[%clk 0:02:45.5]} 21... dxc5 {[%clk 0:02:00]} 22. Qh7+ {[%clk 0:02:45.4]}
22... Kf7 {[%clk 0:02:00]} 23. Ne4 {[%clk 0:02:44.9]} 23... Rh8 {[%clk
0:01:25.4]} 24. Qf5+ {[%clk 0:02:43.5]} 24... Kg8 {[%clk 0:01:25.6]} 25. Qe6+
{[%clk 0:02:43]} 25... Kf8 {[%clk 0:01:24.7]} 26. Rxh8+ {[%clk 0:02:40.8]} 26...
Bxh8 {[%clk 0:01:25]} 27. Bd3 {[%clk 0:02:38.6]} 27... Qe7 {[%clk 0:01:21.4]}
28. Qf5+ {[%clk 0:02:34.5]} 28... Qf7 {[%clk 0:01:19.4]} 29. Qh3 {[%clk
0:02:30.3]} 29... Bg7 {[%clk 0:01:11.7]} 30. Ng5 {[%clk 0:02:27.7]} 30... Qg8
{[%clk 0:00:42.3]} 31. Qd7 {[%clk 0:02:24.9]} 31... Re8 {[%clk 0:00:30.4]} 32.
Nh7+ {[%clk 0:02:22.7]} 1-0

[Event "*** Titled Tuesday Blitz"]
[Site "Chess.com"]
[Date "2020.11.10"]
[Round "1"]
[White "Sacbutt"]
[Black "tlomigtlis"]
[Result "1-0"]
[WhiteElo "2309"]
[BlackElo "2593"]
[TimeControl "180+1"]
[EndTime "10:04:37 PST"]
[Termination "Sacbutt won by checkmate"]

1. d4 {[%clk 0:02:46.7]} 1... d5 {[%clk 0:02:58]} 2. c4 {[%clk 0:02:45.7]} 2...
c6 {[%clk 0:02:58.4]} 3. Nc3 {[%clk 0:02:45.8]} 3... Nf6 {[%clk 0:02:58.6]} 4.
Nf3 {[%clk 0:02:45.7]} 4... e6 {[%clk 0:02:58.4]} 5. e3 {[%clk 0:02:46]} 5... a6
{[%clk 0:02:58.4]} 6. Be2 {[%clk 0:02:44.4]} 6... dxc4 {[%clk 0:02:58.4]} 7.
Bxc4 {[%clk 0:02:43.7]} 7... b5 {[%clk 0:02:58.7]} 8. Bd3 {[%clk 0:02:44.3]}
8... c5 {[%clk 0:02:59.2]} 9. O-O {[%clk 0:02:43.9]} 9... Bb7 {[%clk 0:02:59.1]}
10. dxc5 {[%clk 0:02:32.5]} 10... Bxc5 {[%clk 0:03:00]} 11. Qe2 {[%clk
0:02:30.3]} 11... Nbd7 {[%clk 0:02:59.9]} 12. Rd1 {[%clk 0:02:30.4]} 12... O-O
{[%clk 0:03:00.1]} 13. a3 {[%clk 0:02:29.1]} 13... Qb8 {[%clk 0:02:59.9]} 14. b4
{[%clk 0:02:27.5]} 14... Bd6 {[%clk 0:03:00.2]} 15. h3 {[%clk 0:02:26.6]} 15...
Ne5 {[%clk 0:03:00.4]} 16. Nxe5 {[%clk 0:02:25.7]} 16... Bxe5 {[%clk 0:03:01.3]}
17. Bb2 {[%clk 0:02:26]} 17... Rc8 {[%clk 0:03:00.8]} 18. Rac1 {[%clk 0:02:26]}
18... Nd5 {[%clk 0:02:57.5]} 19. Nxd5 {[%clk 0:02:23.4]} 19... exd5 {[%clk
0:02:40.9]} 20. Rxc8+ {[%clk 0:02:08.1]} 20... Bxc8 {[%clk 0:02:40.9]} 21. Bxh7+
{[%clk 0:02:02.7]} 21... Kxh7 {[%clk 0:02:25.9]} 22. Qh5+ {[%clk 0:02:01.1]}
22... Kg8 {[%clk 0:02:26.3]} 23. Bxe5 {[%clk 0:01:54.9]} 23... Qb6 {[%clk
0:02:25.5]} 24. Rxd5 {[%clk 0:01:49.1]} 24... Bb7 {[%clk 0:02:15.2]} 25. Rd7
{[%clk 0:01:40.8]} 25... Rf8 {[%clk 0:02:08.7]} 26. Qg5 {[%clk 0:01:32.3]} 26...
Qh6 {[%clk 0:01:51.4]} 27. Qxh6 {[%clk 0:01:31.7]} 27... gxh6 {[%clk 0:01:52.3]}
28. Rxb7 {[%clk 0:01:31.4]} 28... Rc8 {[%clk 0:01:53.2]} 29. Rb8 {[%clk
0:01:29.8]} 29... Rxb8 {[%clk 0:01:53.2]} 30. Bxb8 {[%clk 0:01:29.8]} 30... Kf8
{[%clk 0:01:54.1]} 31. Bf4 {[%clk 0:01:28.3]} 31... Ke7 {[%clk 0:01:55]} 32.
Bxh6 {[%clk 0:01:27.8]} 32... Ke6 {[%clk 0:01:55.9]} 33. h4 {[%clk 0:01:23.7]}
33... Kd5 {[%clk 0:01:56.8]} 34. h5 {[%clk 0:01:23.9]} 34... Kc4 {[%clk
0:01:57.7]} 35. Bg7 {[%clk 0:01:24.4]} 35... Kb3 {[%clk 0:01:58.6]} 36. h6
{[%clk 0:01:24.9]} 36... Kxa3 {[%clk 0:01:59]} 37. h7 {[%clk 0:01:25.5]} 37...
Kxb4 {[%clk 0:01:59.8]} 38. h8=Q {[%clk 0:01:26]} 38... a5 {[%clk 0:02:00.7]}
39. Bc3+ {[%clk 0:01:25.4]} 39... Ka4 {[%clk 0:02:01.6]} 40. Qd4+ {[%clk
0:01:25.1]} 40... b4 {[%clk 0:02:02.5]} 41. Bb2 {[%clk 0:01:24.3]} 41... Kb3
{[%clk 0:02:02.4]} 42. Bc1 {[%clk 0:01:18.8]} 42... a4 {[%clk 0:02:01.6]} 43.
Qd5+ {[%clk 0:01:19.1]} 43... Kc2 {[%clk 0:02:01.2]} 44. Qc4+ {[%clk 0:01:18.3]}
44... Kd1 {[%clk 0:02:00.9]} 45. Qxb4 {[%clk 0:01:17.7]} 45... f5 {[%clk
0:02:01.8]} 46. Qxa4+ {[%clk 0:01:17.3]} 46... Ke2 {[%clk 0:02:02.4]} 47. Qc4+
{[%clk 0:01:15.1]} 47... Ke1 {[%clk 0:02:02.1]} 48. Qc3+ {[%clk 0:01:14.1]}
48... Ke2 {[%clk 0:02:02.5]} 49. Qd2# {[%clk 0:01:14.2]} 1-0

[Event "*** Titled Tuesday Blitz"]
[Site "Chess.com"]
[Date "2020.11.10"]
[Round "1"]
[White "JoakimVonAnd"]
[Black "akanga001"]
[Result "1-0"]
[WhiteElo "2494"]
[BlackElo "1913"]
[TimeControl "180+1"]
[EndTime "10:04:37 PST"]
[Termination "JoakimVonAnd won by resignation"]

1. d4 {[%clk 0:02:58.1]} 1... d5 {[%clk 0:02:58.7]} 2. c4 {[%clk 0:02:56.2]}
2... e6 {[%clk 0:02:58.9]} 3. Nc3 {[%clk 0:02:55.7]} 3... Nf6 {[%clk 0:02:59]}
4. cxd5 {[%clk 0:02:55.2]} 4... exd5 {[%clk 0:02:58]} 5. Bg5 {[%clk 0:02:54.4]}
5... c6 {[%clk 0:02:54.8]} 6. e3 {[%clk 0:02:51.2]} 6... Be7 {[%clk 0:02:51.9]}
7. Qc2 {[%clk 0:02:50.7]} 7... g6 {[%clk 0:02:48.3]} 8. Bd3 {[%clk 0:02:48.8]}
8... O-O {[%clk 0:02:47.2]} 9. Nf3 {[%clk 0:02:47.1]} 9... Nh5 {[%clk
0:02:40.8]} 10. Bxe7 {[%clk 0:02:42.9]} 10... Qxe7 {[%clk 0:02:40]} 11. O-O
{[%clk 0:02:32.8]} 11... Ng7 {[%clk 0:02:39.7]} 12. Rab1 {[%clk 0:02:28.7]}
12... a5 {[%clk 0:02:35.5]} 13. a3 {[%clk 0:02:21.5]} 13... Bf5 {[%clk 0:02:35]}
14. b4 {[%clk 0:02:19.9]} 14... axb4 {[%clk 0:02:33.7]} 15. axb4 {[%clk
0:02:20.8]} 15... Bxd3 {[%clk 0:02:31.5]} 16. Qxd3 {[%clk 0:02:21.7]} 16... Ra3
{[%clk 0:02:30.8]} 17. b5 {[%clk 0:02:18.7]} 17... Nd7 {[%clk 0:02:25.7]} 18.
bxc6 {[%clk 0:02:12.3]} 18... bxc6 {[%clk 0:02:25.1]} 19. Rb7 {[%clk 0:02:11.3]}
19... Qd6 {[%clk 0:02:23.4]} 20. Rc1 {[%clk 0:01:56.1]} 20... Nf6 {[%clk
0:02:23.1]} 21. Qb1 {[%clk 0:01:50.8]} 21... Rfa8 {[%clk 0:02:18.4]} 22. h3
{[%clk 0:01:46.2]} 22... Ne6 {[%clk 0:02:18.1]} 23. Ne5 {[%clk 0:01:39.4]} 23...
Ra1 {[%clk 0:02:06.9]} 24. Qxa1 {[%clk 0:01:37.7]} 24... Rxa1 {[%clk 0:02:05.4]}
25. Rxa1 {[%clk 0:01:38.6]} 25... Ng5 {[%clk 0:01:53.4]} 26. h4 {[%clk
0:01:35.8]} 26... Nge4 {[%clk 0:01:52.2]} 27. Nxe4 {[%clk 0:01:28.6]} 27... Nxe4
{[%clk 0:01:50.4]} 28. Ra8+ {[%clk 0:01:28.2]} 28... Kg7 {[%clk 0:01:49.2]} 29.
Nxf7 {[%clk 0:01:22.7]} 29... Qf6 {[%clk 0:01:31.4]} 30. Ng5+ {[%clk 0:01:21.7]}
1-0

[Event "*** Titled Tuesday Blitz"]
[Site "Chess.com"]
[Date "2020.11.10"]
[Round "1"]
[White "BigAl"]
[Black "JRenatoMaranhao"]
[Result "1-0"]
[WhiteElo "2488"]
[BlackElo "1891"]
[TimeControl "180+1"]
[EndTime "10:04:40 PST"]
[Termination "BigAl won by resignation"]

1. e4 {[%clk 0:03:00.6]} 1... c6 {[%clk 0:02:58.8]} 2. d4 {[%clk 0:02:58.8]}
2... d5 {[%clk 0:02:59.2]} 3. Nc3 {[%clk 0:02:58.9]} 3... dxe4 {[%clk 0:02:59]}
4. f3 {[%clk 0:02:59.1]} 4... exf3 {[%clk 0:02:58.8]} 5. Nxf3 {[%clk 0:02:58.5]}
5... Nf6 {[%clk 0:02:59.3]} 6. Bc4 {[%clk 0:02:59.1]} 6... g6 {[%clk 0:02:59.5]}
7. Ne5 {[%clk 0:02:58.5]} 7... e6 {[%clk 0:02:57.5]} 8. O-O {[%clk 0:02:58.6]}
8... Bg7 {[%clk 0:02:57.7]} 9. Bg5 {[%clk 0:02:58.1]} 9... Nbd7 {[%clk
0:02:54.7]} 10. Qe2 {[%clk 0:02:52.1]} 10... O-O {[%clk 0:02:49.2]} 11. Rad1
{[%clk 0:02:50.1]} 11... Qb6 {[%clk 0:02:41.2]} 12. Kh1 {[%clk 0:02:37.1]} 12...
Nxe5 {[%clk 0:02:32.2]} 13. dxe5 {[%clk 0:02:36.4]} 13... Nd5 {[%clk 0:02:31.7]}
14. Ne4 {[%clk 0:02:36.1]} 14... Bxe5 {[%clk 0:02:14.5]} 15. Bxd5 {[%clk
0:02:30.8]} 15... exd5 {[%clk 0:02:05.8]} 16. Nf6+ {[%clk 0:02:30.6]} 16... Bxf6
{[%clk 0:02:04.9]} 17. Bxf6 {[%clk 0:02:30.9]} 17... Bf5 {[%clk 0:01:36.3]} 18.
Rxf5 {[%clk 0:02:24.9]} 18... Rfe8 {[%clk 0:01:34.6]} 19. Re5 {[%clk 0:02:12.8]}
19... Rxe5 {[%clk 0:01:13.9]} 20. Qxe5 {[%clk 0:02:11.8]} 20... Qf2 {[%clk
0:01:06.9]} 21. h3 {[%clk 0:01:58.8]} 21... Qxc2 {[%clk 0:00:51.4]} 22. Re1
{[%clk 0:01:59]} 1-0

[Event "*** Titled Tuesday Blitz"]
[Site "Chess.com"]
[Date "2020.11.10"]
[Round "1"]
[White "Susal_De_Silva"]
[Black "WeAintSurePal"]
[Result "1-0"]
[WhiteElo "2617"]
[BlackElo "2300"]
[TimeControl "180+1"]
[EndTime "10:04:42 PST"]
[Termination "Susal_De_Silva won by resignation"]

1. e4 {[%clk 0:03:00.9]} 1... c6 {[%clk 0:02:59.3]} 2. d4 {[%clk 0:03:00.7]}
2... d5 {[%clk 0:03:00.2]} 3. Nc3 {[%clk 0:03:01.6]} 3... dxe4 {[%clk
0:02:28.8]} 4. Nxe4 {[%clk 0:03:02.5]} 4... Nf6 {[%clk 0:02:29.6]} 5. Nxf6+
{[%clk 0:03:02.3]} 5... exf6 {[%clk 0:02:30.5]} 6. c3 {[%clk 0:03:02.5]} 6...
Bd6 {[%clk 0:02:22.6]} 7. Bd3 {[%clk 0:03:02.4]} 7... O-O {[%clk 0:02:11]} 8.
Ne2 {[%clk 0:03:03.3]} 8... Re8 {[%clk 0:02:05.5]} 9. Qc2 {[%clk 0:03:03]} 9...
h5 {[%clk 0:02:05.8]} 10. Be3 {[%clk 0:03:01.1]} 10... Nd7 {[%clk 0:01:42.2]}
11. O-O-O {[%clk 0:02:59.4]} 11... b5 {[%clk 0:01:42.2]} 12. h3 {[%clk
0:02:58.2]} 12... Nb6 {[%clk 0:01:41.8]} 13. g4 {[%clk 0:02:53]} 13... h4 {[%clk
0:01:42.1]} 14. b3 {[%clk 0:02:48.5]} 14... Nd5 {[%clk 0:01:41.7]} 15. Bd2
{[%clk 0:02:38.2]} 15... a5 {[%clk 0:01:36.7]} 16. Rde1 {[%clk 0:02:33.5]} 16...
a4 {[%clk 0:01:03.6]} 17. b4 {[%clk 0:02:31.8]} 17... Be6 {[%clk 0:01:01.8]} 18.
Rhg1 {[%clk 0:02:26]} 18... Qc7 {[%clk 0:00:59]} 19. g5 {[%clk 0:02:24.5]} 19...
fxg5 {[%clk 0:00:59.9]} 20. Bxg5 {[%clk 0:02:22.9]} 20... Bf4+ {[%clk
0:00:58.9]} 21. Nxf4 {[%clk 0:02:20.9]} 21... Nxf4 {[%clk 0:00:59.8]} 22. Bf6
{[%clk 0:02:07.2]} 22... Nxd3+ {[%clk 0:00:51.4]} 23. Qxd3 {[%clk 0:02:08.1]}
23... g6 {[%clk 0:00:46.8]} 24. Qe4 {[%clk 0:01:58.5]} 1-0

[Event "*** Titled Tuesday Blitz"]
[Site "Chess.com"]
[Date "2020.11.10"]
[Round "1"]
[White "Papa12341234"]
[Black "chesslh19"]
[Result "1-0"]
[WhiteElo "2558"]
[BlackElo "2221"]
[TimeControl "180+1"]
[EndTime "10:04:43 PST"]
[Termination "Papa12341234 won by resignation"]

1. e4 {[%clk 0:03:00.9]} 1... e5 {[%clk 0:02:51.7]} 2. Nf3 {[%clk 0:02:59.9]}
2... Nf6 {[%clk 0:02:51.2]} 3. Nxe5 {[%clk 0:02:59.5]} 3... d6 {[%clk
0:02:50.8]} 4. Nxf7 {[%clk 0:02:57.7]} 4... Kxf7 {[%clk 0:02:49.7]} 5. d4 {[%clk
0:02:56.5]} 5... Be7 {[%clk 0:02:48.1]} 6. Bc4+ {[%clk 0:02:51.9]} 6... d5
{[%clk 0:02:47.4]} 7. exd5 {[%clk 0:02:47.9]} 7... Bd6 {[%clk 0:02:46.4]} 8. O-O
{[%clk 0:02:42.1]} 8... Re8 {[%clk 0:02:44.1]} 9. Nc3 {[%clk 0:02:40.9]} 9...
Kg8 {[%clk 0:02:41.2]} 10. h3 {[%clk 0:02:39.9]} 10... Bf5 {[%clk 0:02:32.2]}
11. Bg5 {[%clk 0:02:38.5]} 11... Nbd7 {[%clk 0:02:31.7]} 12. Bb3 {[%clk
0:02:17]} 12... Qe7 {[%clk 0:02:17.6]} 13. Qf3 {[%clk 0:02:15.1]} 13... Bg6
{[%clk 0:01:56.5]} 14. Bd2 {[%clk 0:01:44.9]} 14... Qf8 {[%clk 0:01:48]} 15.
Rae1 {[%clk 0:01:43.1]} 15... Rxe1 {[%clk 0:01:43.1]} 16. Rxe1 {[%clk 0:01:44]}
16... Re8 {[%clk 0:01:43.4]} 17. Re6 {[%clk 0:01:44.4]} 17... Bf7 {[%clk
0:01:40.4]} 18. Nb5 {[%clk 0:01:36.2]} 18... Rxe6 {[%clk 0:01:27.7]} 19. dxe6
{[%clk 0:01:35.7]} 19... Bxe6 {[%clk 0:01:28.6]} 20. Bxe6+ {[%clk 0:01:35.4]}
20... Kh8 {[%clk 0:01:23.2]} 21. Nxd6 {[%clk 0:01:17.9]} 21... Qxd6 {[%clk
0:01:21.5]} 22. Bxd7 {[%clk 0:01:17.8]} 22... Qxd7 {[%clk 0:01:20.3]} 23. Qxb7
{[%clk 0:01:14.1]} 23... h6 {[%clk 0:01:19.4]} 24. Qxa7 {[%clk 0:01:12.2]} 24...
Ne4 {[%clk 0:01:19.4]} 25. Qa8+ {[%clk 0:01:12.1]} 1-0

[Event "*** Titled Tuesday Blitz"]
[Site "Chess.com"]
[Date "2020.11.10"]
[Round "1"]
[White "rududuyk"]
[Black "albi1999"]
[Result "0-1"]
[WhiteElo "2162"]
[BlackElo "2535"]
[TimeControl "180+1"]
[EndTime "10:04:44 PST"]
[Termination "albi1999 won by resignation"]

1. e4 {[%clk 0:02:57.4]} 1... e6 {[%clk 0:02:59.3]} 2. d4 {[%clk 0:02:56.7]}
2... d5 {[%clk 0:02:59.2]} 3. Nc3 {[%clk 0:02:57.1]} 3... Bb4 {[%clk 0:02:58.6]}
4. e5 {[%clk 0:02:54.8]} 4... c5 {[%clk 0:02:58.3]} 5. a3 {[%clk 0:02:55.1]}
5... Bxc3+ {[%clk 0:02:58.4]} 6. bxc3 {[%clk 0:02:56]} 6... Ne7 {[%clk
0:02:58.8]} 7. Qg4 {[%clk 0:02:55.5]} 7... cxd4 {[%clk 0:02:59]} 8. Qxg7 {[%clk
0:02:54.5]} 8... Rg8 {[%clk 0:02:58.9]} 9. Qxh7 {[%clk 0:02:55.1]} 9... Qc7
{[%clk 0:02:56.8]} 10. Ne2 {[%clk 0:02:53]} 10... Nbc6 {[%clk 0:02:53.2]} 11. f4
{[%clk 0:02:51.7]} 11... dxc3 {[%clk 0:02:51.8]} 12. h4 {[%clk 0:02:49.4]} 12...
Bd7 {[%clk 0:02:48.8]} 13. h5 {[%clk 0:02:49.1]} 13... d4 {[%clk 0:02:47.4]} 14.
h6 {[%clk 0:02:48.2]} 14... O-O-O {[%clk 0:02:47]} 15. Qxf7 {[%clk 0:02:43.9]}
15... Rdf8 {[%clk 0:02:36.7]} 16. Qh5 {[%clk 0:02:34.9]} 16... Nf5 {[%clk
0:02:32.3]} 17. h7 {[%clk 0:02:32.3]} 17... Rh8 {[%clk 0:02:31.9]} 18. g4 {[%clk
0:02:15.6]} 18... Ne3 {[%clk 0:02:28.6]} 19. Bxe3 {[%clk 0:02:14.8]} 19... dxe3
{[%clk 0:02:29.5]} 20. Qh6 {[%clk 0:02:01.1]} 20... Rf7 {[%clk 0:02:20.4]} 21.
Qg6 {[%clk 0:01:58.4]} 21... Be8 {[%clk 0:02:16.7]} 22. Qxe6+ {[%clk 0:01:55.8]}
22... Kb8 {[%clk 0:02:16.8]} 23. Qxe8+ {[%clk 0:01:44.6]} 23... Rxe8 {[%clk
0:02:15.9]} 24. h8=Q {[%clk 0:01:44.4]} 24... Rxh8 {[%clk 0:02:15.4]} 25. Rxh8+
{[%clk 0:01:44]} 25... Nd8 {[%clk 0:02:16]} 26. Rd1 {[%clk 0:01:41.3]} 26... Rd7
{[%clk 0:02:16]} 27. Nd4 {[%clk 0:01:26.8]} 27... a6 {[%clk 0:02:07.2]} 28. e6
{[%clk 0:01:22.3]} 28... Qxf4 {[%clk 0:02:05.5]} 29. Rxd8+ {[%clk 0:01:00.2]}
29... Rxd8 {[%clk 0:02:04.4]} 30. Nc6+ {[%clk 0:01:00.4]} 30... Kc7 {[%clk
0:01:46.4]} 0-1

[Event "*** Titled Tuesday Blitz"]
[Site "Chess.com"]
[Date "2020.11.10"]
[Round "1"]
[White "Mazanchenko_Dmitry"]
[Black "Mr_Sinigami"]
[Result "0-1"]
[WhiteElo "2104"]
[BlackElo "2518"]
[TimeControl "180+1"]
[EndTime "10:04:46 PST"]
[Termination "Mr_Sinigami won on time"]

1. e4 {[%clk 0:02:59.8]} 1... c5 {[%clk 0:02:59.5]} 2. Ne2 {[%clk 0:02:59.5]}
2... e6 {[%clk 0:02:59.7]} 3. Nbc3 {[%clk 0:03:00.3]} 3... a6 {[%clk 0:02:58.7]}
4. a4 {[%clk 0:03:00.1]} 4... Nc6 {[%clk 0:02:57.4]} 5. g3 {[%clk 0:03:00.4]}
5... Nf6 {[%clk 0:02:56.4]} 6. Bg2 {[%clk 0:03:00.7]} 6... Be7 {[%clk
0:02:55.1]} 7. O-O {[%clk 0:02:59.7]} 7... O-O {[%clk 0:02:54.7]} 8. f4 {[%clk
0:02:59.7]} 8... d5 {[%clk 0:02:52.1]} 9. e5 {[%clk 0:02:58.3]} 9... Nd7 {[%clk
0:02:50.7]} 10. d4 {[%clk 0:02:55.2]} 10... cxd4 {[%clk 0:02:47.3]} 11. Nxd4
{[%clk 0:02:56]} 11... Nxd4 {[%clk 0:02:46.9]} 12. Kh1 {[%clk 0:02:50]} 12...
Nf5 {[%clk 0:02:43]} 13. Bh3 {[%clk 0:02:22.9]} 13... Nc5 {[%clk 0:02:38.8]} 14.
Bxf5 {[%clk 0:02:22]} 14... exf5 {[%clk 0:02:38.7]} 15. Nxd5 {[%clk 0:02:21.8]}
15... Be6 {[%clk 0:02:36.2]} 16. c4 {[%clk 0:02:21]} 16... Ne4 {[%clk
0:02:33.3]} 17. Be3 {[%clk 0:02:13.8]} 17... Bc5 {[%clk 0:02:30.8]} 18. Bxc5
{[%clk 0:02:11.2]} 18... Nxc5 {[%clk 0:02:30.4]} 19. b4 {[%clk 0:02:11.4]} 19...
Ne4 {[%clk 0:02:29.3]} 20. Qd4 {[%clk 0:02:07]} 20... b5 {[%clk 0:02:23.7]} 21.
Rad1 {[%clk 0:01:40.1]} 21... bxc4 {[%clk 0:02:22.5]} 22. Qxc4 {[%clk
0:01:39.4]} 22... Rc8 {[%clk 0:02:19.7]} 0-1